bitfinex/quotes_SOLUSD_20240824
["timestamp","ask_amount","ask_price","bid_price","bid_amount"]
[1724459686263,15.2471,153.2,153.15,45.25098]
[1724459687368,15.2471,153.2,153.16,1.30557391]
[1724459687586,15.2471,153.2,153.17,1.55653373]
[1724459687797,15.2471,153.2,153.17,0.12549]
[1724459688085,15.2471,153.2,153.16,0.12549]
[1724459688296,15.2471,153.2,153.16,1.4309393]
[1724459688489,15.2471,153.2,153.17,0.12549]
[1724459688994,6.5944,153.22,153.17,0.12549]
[1724459689206,6.5944,153.22,153.17,45.12549]
[1724459689576,6.5944,153.22,153.18,0.12549]
[1724459692397,6.5944,153.22,153.18,1.43091715]
[1724459695199,6.5944,153.22,153.18,0.12549]
[1724459697683,6.5944,153.22,153.18,1.43082765]
[1724459697883,6.5944,153.22,153.18,0.12549]
[1724459702223,6.5944,153.22,153.18,1.43082935]
[1724459702524,15.2471,153.24,153.18,1.43082935]
[1724459702729,15.2471,153.24,153.19,0.12549]
[1724459703235,15.2471,153.24,153.19,45.12549]
[1724459703396,15.2471,153.24,153.2,1.43063256]
[1724459703602,15.2471,153.24,153.21,1.43063253]
[1724459703791,15.2471,153.24,153.22,0.12549]
[1724459704117,15.2471,153.24,153.22,1.43058363]
[1724459704328,6.4756,153.26,153.22,1.43058363]
[1724459705127,6.4756,153.26,153.23,0.12549]
[1724459705618,6.4756,153.26,153.22,0.25098]
[1724459708321,6.4756,153.26,153.22,1.55594053]
[1724459709516,6.4756,153.26,153.22,0.25098]
[1724459712743,6.4756,153.26,153.22,1.55594152]
[1724459713049,15.5407,153.28,153.22,1.55594152]
[1724459718931,15.5407,153.28,153.22,34.19789828]
[1724459719150,15.5407,153.28,153.23,45.0]
[1724459719328,15.5407,153.28,153.24,1.55585615]
[1724459720729,15.5407,153.28,153.24,0.25098]
[1724459726937,1.43384853,153.27,153.2,20.0]
[1724459727140,1.43384853,153.27,153.19,20.0]
[1724459727656,1.43384853,153.26,153.19,20.0]
[1724459727846,1.43384853,153.26,153.16,21.47681981]
[1724459728033,1.43384853,153.26,153.16,20.0]
[1724459729462,48.56775676,153.24,153.14,15.2739]
[1724459729637,48.56775676,153.24,153.13,32.64195676]
[1724459729638,1.43384853,153.23,153.13,32.64195676]
[1724459729834,50.00160529,153.24,153.13,32.64195676]
[1724459730670,50.00160529,153.24,153.14,0.25098]
[1724459730843,50.00160529,153.24,153.14,65.25098]
[1724459731561,15.9258,153.24,153.15,1.30547676]
[1724459731870,15.9258,153.24,153.16,0.25098]
[1724459732043,15.9258,153.24,153.16,1.55645688]
[1724459733542,15.9258,153.24,153.16,21.55645688]
[1724459733740,15.9258,153.24,153.17,45.0]
[1724459733974,15.9258,153.24,153.18,1.43085927]
[1724459734154,15.9258,153.24,153.19,0.12549]
[1724459735848,15.9258,153.24,153.19,1.43077193]
[1724459737777,15.9258,153.24,153.2,1.43075267]
[1724459737944,6.4806,153.25,153.21,1.43060387]
[1724459739871,6.4806,153.25,153.21,0.12549]
[1724459740873,6.4806,153.25,153.21,1.43074551]
[1724459741776,6.4806,153.25,153.21,0.12549]
[1724459744274,6.4806,153.25,153.21,1.43066898]
[1724459746469,6.4806,153.25,153.21,0.12549]
[1724459747091,6.4806,153.25,153.21,1.43066969]
[1724459748589,6.4806,153.25,153.21,0.12549]
[1724459748771,1.43384853,153.24,153.21,0.12549]
[1724459749088,17.98394853,153.23,153.13,32.64195676]
[1724459749264,17.98394853,153.23,153.11,48.70475676]
[1724459749465,6.6228,153.22,153.11,48.70475676]
[1724459749768,1.43384853,153.21,153.11,48.70475676]
[1724459750266,1.43384853,153.2,153.09,32.64195676]
[1724459750584,16.5501,153.19,153.09,34.17977238]
[1724459750793,1.43384853,153.18,153.09,34.17977238]
[1724459752084,17.98394853,153.19,153.1,0.12549]
[1724459752282,17.98394853,153.19,153.1,45.25098]
[1724459752691,17.98394853,153.19,153.11,20.0]
[1724459752995,16.5501,153.19,153.12,46.55682305]
[1724459753196,16.5501,153.19,153.13,20.0]
[1724459753400,16.5501,153.19,153.14,46.55665656]
[1724459753601,16.5501,153.19,153.15,1.30567252]
[1724459753896,16.5501,153.19,153.16,0.12549]
[1724459756403,16.5501,153.19,153.16,0.25098]
[1724459757479,16.5501,153.19,153.15,0.25098]
[1724459760000,16.5501,153.19,153.15,1.55652605]
[1724459760491,16.5501,153.19,153.15,21.55652605]
[1724459760816,16.5501,153.19,153.16,45.0]
[1724459760998,16.5501,153.19,153.17,1.55645771]
[1724459761314,15.8355,153.24,153.18,1.305477]
[1724459761610,15.8355,153.24,153.2,32.64195676]
[1724459761777,15.8355,153.24,153.21,46.43060061]
[1724459761979,15.8355,153.24,153.22,0.12549]
[1724459762399,15.8355,153.24,153.22,1.43059687]
[1724459763415,6.5241,153.25,153.22,1.43059687]
[1724459763617,6.5241,153.25,153.23,0.12549]
[1724459768028,15.8355,153.28,153.23,1.43044826]
[1724459768219,15.8355,153.28,153.24,0.12549]
[1724459768419,15.8355,153.28,153.23,0.12549]
[1724459768727,15.8355,153.28,153.23,45.12549]
[1724459769027,17.26934853,153.28,153.22,20.0]
[1724459769233,17.26934853,153.28,153.19,20.0]
[1724459769417,6.5241,153.27,153.16,32.64195676]
[1724459769614,1.43384853,153.26,153.16,32.64195676]
[1724459770837,6.5241,153.27,153.18,32.64195676]
[1724459771024,6.5241,153.27,153.19,46.55610738]
[1724459771354,6.5241,153.27,153.19,45.25098]
[1724459771936,6.5241,153.27,153.2,20.0]
[1724459772112,6.5241,153.27,153.21,45.25098]
[1724459773045,6.5241,153.27,153.22,1.30512272]
[1724459773218,6.5241,153.27,153.23,0.12549]
[1724459775621,6.5241,153.27,153.23,0.25098]
[1724459775809,6.5241,153.27,153.23,1.55588482]
[1724459776011,6.5241,153.27,153.23,46.55588482]
[1724459776222,1.43384853,153.26,153.15,1.47377264]
[1724459776428,1.43384853,153.26,153.17,32.64195676]
[1724459776633,1.43384853,153.26,153.18,20.0]
[1724459777615,1.43384853,153.26,153.19,45.25098]
[1724459777814,1.43384853,153.26,153.2,20.0]
[1724459778036,1.43384853,153.26,153.21,45.12549]
[1724459778540,6.5241,153.27,153.22,1.30522869]
[1724459778747,6.5241,153.27,153.22,1.43071869]
[1724459778921,6.5241,153.27,153.23,0.12549]
[1724459779449,6.5241,153.27,153.23,1.43050625]
[1724459779751,6.5241,153.27,153.23,46.43050625]
[1724459780519,6.5241,153.27,153.24,1.43043114]
[1724459780839,6.5241,153.27,153.25,0.12549]
[1724459781026,6.5241,153.27,153.25,45.12549]
[1724459783447,6.5241,153.27,153.25,46.43032369]
[1724459784928,6.5867,153.31,153.26,21.30482298]
[1724459785135,6.5867,153.31,153.27,45.12549]
[1724459785443,6.5867,153.31,153.28,1.30459435]
[1724459786124,6.5867,153.31,153.29,0.12549]
[1724459789749,6.5867,153.31,153.29,0.25098]
[1724459790247,6.5867,153.31,153.29,46.55547399]
[1724459790641,6.5867,153.31,153.29,45.25098]
[1724459791227,6.5867,153.31,153.29,46.55547528]
[1724459791755,6.5867,153.31,153.23,32.64195676]
[1724459791945,8.02054853,153.31,153.23,32.64195676]
[1724459792339,8.02054853,153.31,153.19,36.4458]
[1724459792340,8.02054853,153.31,153.21,32.64195676]
[1724459792841,15.0534,153.28,153.19,32.64195676]
[1724459793145,6.5867,153.26,153.17,32.64195676]
[1724459793356,1.43384853,153.25,153.17,32.64195676]
[1724459793934,6.5867,153.26,153.17,32.64195676]
[1724459794644,6.5867,153.26,153.18,1.30522479]
[1724459794954,6.5867,153.26,153.19,32.64195676]
[1724459795252,6.5867,153.26,153.2,1.3050395]
[1724459795552,6.5867,153.26,153.21,1.30500376]
[1724459795749,6.5867,153.26,153.21,34.19794052]
[1724459795956,6.5867,153.26,153.22,45.0]
[1724459796257,6.5867,153.26,153.23,0.25098]
[1724459805052,8.02054853,153.26,153.17,32.64195676]
[1724459805255,8.02054853,153.26,153.15,49.08775676]
[1724459805959,8.02054853,153.26,153.15,49.08775676]
[1724459806772,8.02054853,153.26,153.16,20.0]
[1724459806953,8.02054853,153.26,153.17,0.12549]
[1724459807474,8.02054853,153.26,153.17,32.76744676]
[1724459807777,6.5867,153.26,153.18,65.12549]
[1724459807944,6.5867,153.26,153.19,0.12549]
[1724459808649,6.5867,153.26,153.18,65.12549]
[1724459808650,49.52580529,153.25,153.12,15.4062]
[1724459808877,7.55064853,153.24,153.12,48.04815676]
[1724459809075,1.43384853,153.23,153.12,32.64195676]
[1724459810380,1.43384853,153.23,153.13,20.0]
[1724459811073,6.1168,153.24,153.14,32.64195676]
[1724459811276,6.1168,153.24,153.16,32.64195676]
[1724459811460,7.55064853,153.24,153.17,20.0]
[1724459811662,7.55064853,153.24,153.18,45.25098]
[1724459812371,6.1168,153.24,153.18,45.25098]
[1724459814153,6.1168,153.24,153.19,20.0]
[1724459814356,6.1168,153.24,153.2,45.25098]
[1724459816694,23.80444853,153.23,153.08,20.0]
[1724459816858,22.3714,153.21,153.1,32.64195676]
[1724459817058,1.43384853,153.2,153.1,32.64195676]
[1724459817381,6.1877,153.19,153.1,32.64195676]
[1724459818281,6.1877,153.19,153.11,20.0]
[1724459819063,6.1877,153.19,153.12,45.25098]
[1724459819261,6.1877,153.19,153.1,32.64195676]
[1724459819262,6.1877,153.19,153.13,20.0]
[1724459819686,6.1877,153.19,153.12,32.64195676]
[1724459819891,6.1877,153.19,153.13,20.0]
[1724459820583,6.1877,153.19,153.14,0.12549]
[1724459820756,6.1877,153.19,153.14,0.25098]
[1724459820958,6.1877,153.19,153.14,45.25098]
[1724459822885,6.1877,153.19,153.15,1.30554377]
[1724459823084,6.1877,153.19,153.16,0.25098]
[1724459823387,6.1877,153.19,153.16,46.55646502]
[1724459824886,6.1877,153.19,153.17,0.25098]
[1724459825988,15.8444,153.21,153.17,0.25098]
[1724459826299,15.8444,153.21,153.17,21.55646635]
[1724459826767,15.8444,153.21,153.18,45.0]
[1724459826972,15.8444,153.21,153.19,0.25098]
[1724459827282,6.1546,153.23,153.19,21.55622001]
[1724459827602,6.1546,153.23,153.2,45.0]
[1724459827809,6.1546,153.23,153.21,1.43065397]
[1724459827968,6.1546,153.23,153.21,0.12549]
[1724459828171,6.1546,153.23,153.21,0.25098]
[1724459829387,16.5266,153.25,153.21,34.07073619]
[1724459829569,6.1546,153.27,153.23,32.64195676]
[1724459829766,6.1546,153.27,153.24,45.25098]
[1724459830187,6.1546,153.27,153.25,1.30480695]
[1724459830380,6.1546,153.27,153.26,0.12549]
[1724459830782,16.5266,153.29,153.26,0.12549]
[1724459830997,16.5266,153.29,153.24,45.12549]
[1724459830998,16.5266,153.29,153.25,0.12549]
[1724459831414,16.5266,153.29,153.25,54.07216153]
[1724459831606,16.5266,153.29,153.26,45.12549]
[1724459831897,16.5266,153.29,153.27,1.43012571]
[1724459832101,16.5266,153.29,153.28,0.12549]
[1724459832877,16.5266,153.29,153.27,0.25098]
[1724459833079,16.5266,153.29,153.27,0.12549]
[1724459833398,16.5266,153.29,153.23,32.64195676]
[1724459833609,1.43384853,153.28,153.18,32.64195676]
[1724459833790,6.1546,153.27,153.18,32.64195676]
[1724459836095,6.1546,153.27,153.19,20.25098]
[1724459836288,6.1546,153.27,153.2,45.0]
[1724459836495,6.1546,153.27,153.21,20.25098]
[1724459836803,6.1546,153.27,153.22,45.0]
[1724459836982,1.43384853,153.26,153.23,0.12549]
[1724459837186,1.43384853,153.26,153.21,0.12549]
[1724459837803,16.3486,153.25,153.17,20.0]
[1724459838001,1.43384853,153.24,153.16,32.64195676]
[1724459838184,1.43384853,153.24,153.1,20.0]
[1724459838389,6.0265,153.23,153.13,32.64195676]
[1724459839399,6.0265,153.23,153.15,32.64195676]
[1724459839605,6.0265,153.23,153.16,20.12549]
[1724459840699,6.0265,153.23,153.17,45.0]
[1724459840888,6.0265,153.23,153.18,0.25098]
[1724459841486,6.0265,153.23,153.18,1.55636056]
[1724459842401,6.0265,153.23,153.18,0.25098]
[1724459842706,6.0265,153.23,153.18,1.55627026]
[1724459845115,6.0265,153.23,153.18,0.25098]
[1724459846815,6.0265,153.23,153.18,21.55622554]
[1724459847003,6.0265,153.23,153.19,45.0]
[1724459847200,6.0265,153.23,153.2,1.43073379]
[1724459847506,6.0265,153.23,153.21,1.30524379]
[1724459847724,6.0265,153.23,153.22,0.25098]
[1724459847888,6.0265,153.23,153.22,1.556062]
[1724459848215,6.0265,153.23,153.22,0.25098]
[1724459848394,6.0265,153.23,153.21,45.25098]
[1724459849015,6.0265,153.23,153.21,45.12549]
[1724459849320,6.0265,153.23,153.21,0.12549]
[1724459853216,6.0265,153.23,153.2,65.25098]
[1724459855823,6.0265,153.23,153.2,45.25098]
[1724459861903,16.3486,153.25,153.2,45.25098]
[1724459862306,16.3486,153.25,153.21,1.30503747]
[1724459862510,16.3486,153.25,153.22,0.25098]
[1724459862908,16.3486,153.25,153.22,1.55602956]
[1724459863114,6.3125,153.27,153.22,0.25098]
[1724459863431,6.3125,153.27,153.22,45.25098]
[1724459877460,6.3125,153.27,153.22,0.25098]
[1724459877762,6.3125,153.27,153.22,20.25098]
[1724459877942,15.1664,153.29,153.23,46.30482715]
[1724459878147,15.1664,153.29,153.24,1.55574257]
[1724459878455,15.1664,153.29,153.24,21.55574257]
[1724459878641,15.1664,153.29,153.25,45.0]
[1724459878847,15.1664,153.29,153.26,1.43022644]
[1724459879046,6.6088,153.31,153.26,1.43022644]
[1724459879366,6.6088,153.31,153.26,0.12549]
[1724459879564,6.6088,153.31,153.26,0.25098]
[1724459880647,15.3222,153.33,153.26,21.55560151]
[1724459880847,15.3222,153.33,153.27,45.0]
[1724459881066,15.3222,153.33,153.28,1.55551274]
[1724459883577,6.6088,153.35,153.28,21.55551274]
[1724459883873,6.6088,153.35,153.29,45.0]
[1724459884064,6.6088,153.35,153.3,0.12549]
[1724459889195,6.6088,153.35,153.3,1.42999062]
[1724459890990,15.3222,153.37,153.31,0.12549]
[1724459891190,15.3222,153.37,153.31,45.12549]
[1724459891399,15.3222,153.37,153.32,0.12549]
[1724459893082,6.6088,153.39,153.32,1.42969062]
[1724459893277,6.6088,153.39,153.32,0.12549]
[1724459893705,6.6088,153.39,153.32,34.07159044]
[1724459893893,6.6088,153.39,153.33,45.12549]
[1724459894086,6.6088,153.39,153.34,1.42952252]
[1724459894706,6.6088,153.39,153.34,0.12549]
[1724459896008,1.43384853,153.38,153.34,0.12549]
[1724459899405,6.6088,153.39,153.34,0.12549]
[1724459899610,15.3222,153.41,153.34,1.42957466]
[1724459899990,15.3222,153.41,153.34,0.12549]
[1724459900311,15.3222,153.41,153.34,1.42957363]
[1724459900516,15.3222,153.41,153.34,1.42952804]
[1724459900708,15.3222,153.41,153.35,0.12549]
[1724459902397,6.4074,153.43,153.35,32.76744676]
[1724459902600,6.4074,153.43,153.36,46.42936971]
[1724459903322,15.0802,153.45,153.36,46.42936971]
[1724459903703,21.597,153.45,153.37,0.12549]
[1724459903922,21.597,153.45,153.37,1.4292311]
[1724459904120,15.0802,153.45,153.38,0.12549]
[1724459904998,6.5164,153.46,153.38,0.12549]
[1724459905199,6.4074,153.47,153.38,45.12549]
[1724459905413,6.4074,153.47,153.39,32.76744676]
[1724459905733,6.4074,153.47,153.38,45.12549]
[1724459905734,1.43384853,153.46,153.4,0.12549]
[1724459906100,1.43384853,153.46,153.39,0.12549]
[1724459907720,12.9233,153.47,153.39,1.42913127]
[1724459908023,6.4074,153.47,153.39,1.42913127]
[1724459908216,7.84124853,153.47,153.4,0.12549]
[1724459908426,6.4074,153.47,153.4,46.42889972]
[1724459908606,6.4074,153.47,153.41,0.12549]
[1724459908921,15.0802,153.5,153.41,32.76744676]
[1724459909132,15.0802,153.5,153.42,45.12549]
[1724459909316,15.0802,153.5,153.43,0.12549]
[1724459911637,1.43384853,153.49,153.43,0.12549]
[1724459912329,1.43384853,153.48,153.43,0.12549]
[1724459913636,1.43384853,153.49,153.43,0.12549]
[1724459915740,7.94914853,153.49,153.43,0.12549]
[1724459915917,7.94954853,153.48,153.41,15.2043]
[1724459916121,6.5168,153.45,153.37,15.2043]
[1724459916321,1.43384853,153.44,153.37,15.2043]
[1724459916630,7.95134853,153.44,153.37,15.2043]
[1724459916841,1.43384853,153.44,153.37,15.2043]
[1724459918039,1.43384853,153.44,153.38,6.644]
[1724459918235,6.5158,153.48,153.39,52.64195676]
[1724459918236,1.43384853,153.48,153.39,52.64195676]
[1724459919218,1.43384853,153.48,153.4,45.12549]
[1724459919431,1.43384853,153.48,153.41,0.12549]
[1724459919737,21.5949,153.5,153.41,1.42887896]
[1724459919906,21.5949,153.5,153.42,0.12549]
[1724459923018,1.43384853,153.49,153.41,0.12549]
[1724459923217,1.43384853,153.48,153.41,0.25098]
[1724459923422,6.516,153.47,153.36,32.64195676]
[1724459923616,1.43384853,153.46,153.34,39.28595676]
[1724459923929,1.43384853,153.45,153.34,39.28595676]
[1724459924720,6.5154,153.49,153.38,78.94564924]
[1724459924926,6.5154,153.49,153.39,1.55446814]
[1724459924927,20.0,153.48,153.39,1.55446814]
[1724459925126,21.0971,153.5,153.4,33.94541087]
[1724459925338,27.6117,153.5,153.41,45.25098]
[1724459925539,27.6117,153.5,153.42,33.94528265]
[1724459925540,21.0971,153.5,153.42,33.94528265]
[1724459925743,22.2919,153.54,153.44,32.64195676]
[1724459925950,28.8052,153.54,153.45,46.55405239]
[1724459926245,28.8052,153.54,153.46,1.30306473]
[1724459926426,28.8052,153.54,153.47,0.12549]
[1724459926745,1.43384853,153.53,153.47,0.12549]
[1724459927115,1.43384853,153.55,153.46,32.76744676]
[1724459927322,1.43384853,153.54,153.47,45.12549]
[1724459927625,20.0,153.55,153.48,1.42837763]
[1724459928042,1.43384853,153.54,153.48,0.12549]
[1724459928247,26.5126,153.55,153.48,0.12549]
[1724459928540,6.513,153.54,153.47,1.30290531]
[1724459928734,6.513,153.54,153.46,0.12549]
[1724459928943,6.513,153.54,153.46,1.55399486]
[1724459929333,1.43384853,153.53,153.46,0.25098]
[1724459929532,1.43384853,153.53,153.46,0.12549]
[1724459930042,39.15605676,153.52,153.44,15.5125]
[1724459930254,39.15605676,153.52,153.4,39.28595676]
[1724459930255,30.24004853,153.51,153.4,39.28595676]
[1724459930637,28.8062,153.51,153.41,1.30332027]
[1724459931333,68.91695676,153.55,153.42,33.94527719]
[1724459931534,68.91695676,153.55,153.43,21.30308961]
[1724459932145,68.91695676,153.55,153.44,32.64195676]
[1724459932449,6.5131,153.54,153.45,1.55406882]
[1724459932624,42.7875,153.55,153.46,1.30308866]
[1724459932961,42.7875,153.55,153.47,0.25098]
[1724459933326,42.7875,153.55,153.47,1.55392413]
[1724459935053,16.275,153.55,153.47,0.25098]
[1724459935929,16.275,153.55,153.47,1.55373923]
[1724459937040,16.275,153.55,153.47,0.25098]
[1724459937632,17.70884853,153.55,153.47,0.25098]
[1724459939563,24.22134853,153.55,153.47,0.25098]
[1724459939767,22.7875,153.55,153.47,1.55391249]
[1724459940252,7.94694853,153.54,153.47,0.25098]
[1724459940460,6.5134,153.53,153.45,15.5125]
[1724459940760,1.43384853,153.52,153.45,15.5125]
[1724459941257,48.91695676,153.55,153.45,15.5125]
[1724459941441,1.43384853,153.54,153.45,15.5125]
[1724459941628,1.43384853,153.54,153.46,0.12549]
[1724459941831,48.91695676,153.55,153.46,46.42852333]
[1724459942269,6.513,153.54,153.46,46.42852333]
[1724459943248,6.5134,153.53,153.46,46.42852333]
[1724459943665,6.513,153.54,153.46,46.42852333]
[1724459944662,16.275,153.55,153.47,0.12549]
[1724459944663,22.7876,153.55,153.47,0.12549]
[1724459945337,16.275,153.55,153.47,0.12549]
[1724459945976,17.70884853,153.55,153.47,0.12549]
[1724459946473,16.275,153.55,153.47,0.12549]
[1724459946942,16.275,153.55,153.47,1.42832049]
[1724459947144,16.275,153.55,153.48,0.12549]
[1724459949464,6.8373954,153.56,153.48,0.12549]
[1724459949956,13.3494954,153.56,153.48,0.12549]
[1724459950152,1.43384853,153.55,153.48,0.12549]
[1724459950461,1.43384853,153.55,153.47,0.25098]
[1724459952360,1.43384853,153.54,153.47,0.25098]
[1724459952740,6.5134,153.53,153.45,15.5125]
[1724459952942,1.43384853,153.52,153.45,15.5125]
[1724459953665,6.513,153.54,153.46,1.30306165]
[1724459954167,6.5133,153.53,153.46,1.30306165]
[1724459954778,6.5133,153.53,153.46,46.30306165]
[1724459955066,6.5133,153.53,153.47,0.12549]
[1724459955268,7.94774853,153.52,153.42,38.90305676]
[1724459955449,1.43384853,153.51,153.43,65.25098]
[1724459959666,7.94804853,153.51,153.43,65.25098]
[1724459959966,1.43384853,153.51,153.43,65.25098]
[1724459966870,22.5119,153.53,153.44,1.30313488]
[1724459967059,22.5119,153.53,153.45,0.25098]
[1724459967265,22.5119,153.53,153.45,1.553992]
[1724459967554,15.9985,153.53,153.45,46.553992]
[1724459968157,6.8373954,153.56,153.46,32.64195676]
[1724459968359,6.8373954,153.56,153.47,46.5538119]
[1724459969157,13.3494954,153.56,153.48,1.30280527]
[1724459969369,13.3494954,153.56,153.49,0.12549]
[1724459969774,13.3494954,153.56,153.49,1.42829405]
[1724459969961,1.43384853,153.55,153.49,0.12549]
[1724459970162,1.43384853,153.55,153.48,0.12549]
[1724459970476,13.3494954,153.56,153.48,1.42829321]
[1724459971875,1.43384853,153.55,153.48,0.12549]
[1724459972485,6.8373954,153.56,153.48,1.42829129]
[1724459972774,6.8373954,153.56,153.49,0.12549]
[1724459975984,6.8373954,153.56,153.49,1.42824118]
[1724459976163,0.8204954,153.56,153.5,0.12549]
[1724459976480,0.8204954,153.56,153.52,32.64195676]
[1724459976778,0.8204954,153.56,153.53,46.55335969]
[1724459977280,0.8204954,153.56,153.53,45.25098]
[1724459977463,0.8204954,153.56,153.53,0.12549]
[1724459977783,0.8204954,153.56,153.48,52.64195676]
[1724459977990,0.8204954,153.56,153.49,45.25098]
[1724459978159,0.8204954,153.56,153.49,0.25098]
[1724459979558,1.43384853,153.55,153.49,45.25098]
[1724459979758,1.43384853,153.54,153.47,15.5236]
[1724459980069,7.94684853,153.54,153.47,15.5236]
[1724459980498,6.513,153.54,153.48,1.30290724]
[1724459981473,6.513,153.54,153.49,0.12549]
[1724459981984,6.513,153.54,153.48,0.12549]
[1724459984582,22.2284,153.54,153.48,0.12549]
[1724459985197,23.66224853,153.54,153.48,0.12549]
[1724459986075,6.5133,153.53,153.48,0.12549]
[1724459986286,1.43384853,153.52,153.48,0.12549]
[1724459986464,1.43384853,153.51,153.44,20.0]
[1724459986787,7.94804853,153.51,153.43,15.0952]
[1724459987285,7.94804853,153.51,153.41,32.64195676]
[1724459987459,7.94804853,153.51,153.39,55.66297069]
[1724459987460,40.59000529,153.51,153.39,55.66297069]
[1724459988567,40.59000529,153.51,153.4,0.12549]
[1724459988773,40.59000529,153.51,153.4,65.25098]
[1724459998092,15.6115,153.49,153.4,65.25098]
[1724459999902,15.6115,153.49,153.4,45.25098]
[1724460000098,1.43384853,153.48,153.4,45.25098]
[1724460001909,23.56044853,153.49,153.4,45.25098]
[1724460002812,22.1266,153.49,153.4,45.25098]
[1724460006610,22.1266,153.49,153.41,1.30332714]
[1724460006785,22.1266,153.49,153.4,45.25098]
[1724460006786,22.1266,153.49,153.42,0.25098]
[1724460006986,22.1266,153.49,153.4,45.25098]
[1724460007919,22.1266,153.49,153.41,1.30332723]
[1724460008121,22.1266,153.49,153.42,0.25098]
[1724460008921,22.1266,153.49,153.41,0.25098]
[1724460009523,22.1266,153.49,153.41,1.55430796]
[1724460010424,15.6115,153.49,153.41,43.66201983]
[1724460010608,15.6115,153.49,153.43,32.64195676]
[1724460010924,15.6115,153.49,153.44,66.55393831]
[1724460012913,15.6115,153.49,153.44,65.25098]
[1724460014123,15.6115,153.49,153.45,1.30298741]
[1724460014424,15.6115,153.49,153.46,0.25098]
[1724460015002,6.1534,153.52,153.46,1.55390884]
[1724460015204,6.1534,153.52,153.46,46.55390884]
[1724460015934,6.1534,153.52,153.47,32.64195676]
[1724460016106,6.1534,153.52,153.48,46.55372564]
[1724460016310,6.1534,153.52,153.49,1.30267483]
[1724460016516,6.1534,153.52,153.5,0.25098]
[1724460017024,6.9756954,153.56,153.51,33.94463444]
[1724460017212,6.9756954,153.56,153.52,46.55346389]
[1724460017420,6.9756954,153.56,153.52,46.30248389]
[1724460017725,6.9756954,153.56,153.53,0.12549]
[1724460020421,6.9756954,153.56,153.53,1.29696365]
[1724460027443,0.8204954,153.56,153.53,1.29696365]
[1724460028399,0.8204954,153.56,153.53,0.12549]
[1724460028604,0.8204954,153.56,153.53,0.25098]
[1724460029634,0.8204954,153.56,153.53,1.55328898]
[1724460030630,0.8204954,153.56,153.53,0.25098]
[1724460031213,0.8204954,153.56,153.53,1.55328894]
[1724460032837,0.8204954,153.56,153.55,32.64195676]
[1724460033142,0.8204954,153.56,153.55,77.89293676]
[1724460034312,0.8204954,153.56,153.55,45.25098]
[1724460034534,0.8204954,153.56,153.55,77.89293676]
[1724460038135,0.8204954,153.56,153.55,79.19492099]
[1724460039621,0.8204954,153.56,153.55,97.89293676]
[1724460040020,4.6954,153.62,153.55,99.19477909]
[1724460040244,4.6954,153.62,153.6,32.64195676]
[1724460040548,4.6954,153.62,153.61,66.55248729]
[1724460042147,4.6954,153.62,153.61,65.25098]
[1724460042539,4.6954,153.62,153.61,65.12549]
[1724460042720,4.6954,153.62,153.58,32.64195676]
[1724460042915,4.6954,153.62,153.59,20.0]
[1724460044048,4.6954,153.62,153.6,1.30178308]
[1724460044521,4.6954,153.62,153.61,0.25098]
[1724460045547,4.6954,153.62,153.61,1.5526137]
[1724460045846,4.6954,153.62,153.61,21.5526137]
[1724460046150,4.6954,153.62,153.61,66.5526137]
[1724460048357,4.6954,153.62,153.61,99.19457046]
[1724460049453,4.6954,153.62,153.61,66.5526137]
[1724460052654,4.6954,153.62,153.61,66.55242021]
[1724460056356,16.2599,153.68,153.61,66.55242021]
[1724460056676,16.2599,153.68,153.64,32.64195676]
[1724460056864,16.2599,153.68,153.65,45.25098]
[1724460057548,16.2599,153.68,153.66,1.30132638]
[1724460057754,16.2599,153.68,153.67,0.12549]
[1724460058560,6.2749,153.69,153.67,0.12549]
[1724460058757,6.2749,153.69,153.67,1.55213381]
[1724460059134,0.8204954,153.71,153.67,1.55213381]
[1724460059335,0.8204954,153.71,153.67,46.55213381]
[1724460060550,0.8204954,153.71,153.67,45.25098]
[1724460062059,2.25434393,153.71,153.67,45.12549]
[1724460062366,2.25434393,153.71,153.64,32.64195676]